fUST/lending_fUST_20250911
["ID","MTS","AMOUNT","RATE_DAILY","PERIOD"]
[384870087,1757603447116,-480.0,0.00013953,2]
[384870089,1757603447125,-480.0,0.00013953,2]
[384870091,1757603447134,-480.0,0.00013953,2]
[384870093,1757603447143,-480.0,0.00013953,2]
[384870095,1757603447153,-480.0,0.00013953,2]
[384870097,1757603447162,-480.0,0.00013953,2]
[384870099,1757603447172,-480.0,0.00013953,2]
[384870101,1757603447181,-480.0,0.00013953,2]
[384870103,1757603447190,-480.0,0.00013953,2]
[384870105,1757603447199,-507.62,0.00013953,2]
[384870107,1757603447208,-511.56,0.00013953,2]
[384870109,1757603447218,-480.0,0.00013953,2]
[384870111,1757603447227,-480.0,0.00013953,2]
[384870113,1757603447236,-655.61,0.00013953,2]
[384870115,1757603447246,-480.0,0.00013953,2]
[384870117,1757603447255,-480.0,0.00013953,2]
[384870119,1757603447264,-480.0,0.00013953,2]
[384870121,1757603447276,-480.0,0.00013953,2]
[384870123,1757603447285,-480.0,0.00013953,2]
[384870125,1757603447294,-480.0,0.00013953,2]
[384870127,1757603447304,-480.0,0.00013953,2]
[384870129,1757603447313,-480.0,0.00013953,2]
[384870131,1757603447323,-480.0,0.00013953,2]
[384870133,1757603447332,-480.0,0.00013953,2]
[384870135,1757603447342,-480.0,0.00013953,2]
[384870137,1757603447351,-480.0,0.00013953,2]
[384870139,1757603447363,-510.16,0.00013953,2]
[384870141,1757603447373,-480.0,0.00013953,2]
[384870143,1757603447383,-480.0,0.00013953,2]
[384870145,1757603447392,-480.0,0.00013953,2]
[384870147,1757603447401,-480.0,0.00013953,2]
[384870149,1757603447411,-605.63,0.00013953,2]
[384870151,1757603447422,-581.72169038,0.00013953,2]
[384870154,1757603447432,-480.0,0.00013953,2]
[384870155,1757603447441,-480.0,0.00013953,2]
[384870157,1757603447450,-219.85774577,0.00013953,2]
[384870160,1757603447460,-480.0,0.00013953,2]
[384870161,1757603447469,-614.41,0.00013953,2]
[384870163,1757603447478,-480.0,0.00013953,2]
[384870165,1757603447488,-207.75792962,0.00013954,2]
[384870167,1757603447497,-500.0,0.00013954,2]
[384870170,1757603447507,-500.0,0.00013954,2]
[384870171,1757603447516,-480.0,0.00013955,2]
[384870173,1757603447526,-480.0,0.00013955,2]
[384870175,1757603447535,-480.0,0.00013955,2]
[384870177,1757603447545,-480.0,0.00013955,2]
[384870179,1757603447554,-480.0,0.00013955,2]
[384870181,1757603447563,-480.0,0.00013955,2]
[384870183,1757603447573,-480.0,0.00013955,2]
[384870185,1757603447582,-480.0,0.00013955,2]
[384870187,1757603447591,-480.0,0.00013955,2]
[384870189,1757603447600,-480.0,0.00013955,2]
[384870191,1757603447609,-230.12,0.00013955,2]
[384870193,1757603447619,-480.0,0.00013955,2]
[384870195,1757603447628,-486.86272866,0.00013955,2]
[384870197,1757603447637,-480.0,0.00013955,2]
[384870199,1757603447646,-244.58986543,0.00013955,2]
[384870201,1757603447655,-432.02662751,0.00013955,2]
[384870203,1757603447666,-480.0,0.00013955,2]
[384870206,1757603447675,-463.74990167,0.00013955,2]
[384870208,1757603447684,-480.0,0.00013955,2]
[384870209,1757603447694,-546.99,0.00013955,2]
[384870211,1757603447703,-480.0,0.00013955,2]
[384870214,1757603447713,-480.0,0.00013955,2]
[384870215,1757603447722,-434.4554836,0.00013955,2]
[384870217,1757603447731,-297.82663123,0.00013955,2]
[384870219,1757603447740,-480.0,0.00013955,2]
[384870221,1757603447749,-480.0,0.00013955,2]
[384870223,1757603447758,-480.0,0.00013955,2]
[384870225,1757603447768,-480.0,0.00013955,2]
[384870227,1757603447778,-480.0,0.00013955,2]
[384870229,1757603447787,-480.0,0.00013955,2]
[384870231,1757603447797,-480.0,0.00013955,2]
[384870233,1757603447806,-279.15987368,0.00013955,2]
[384870235,1757603447815,-480.0,0.00013955,2]
[384870237,1757603447824,-480.0,0.00013955,2]
[384870239,1757603447833,-304.56380883,0.00013955,2]
[384870241,1757603447843,-480.0,0.00013955,2]
[384870243,1757603447852,-480.0,0.00013955,2]
[384870245,1757603447861,-480.0,0.00013955,2]
[384870247,1757603447871,-491.25133317,0.00013955,2]
[384870249,1757603447880,-480.0,0.00013955,2]
[384870251,1757603447889,-480.0,0.00013955,2]
[384870253,1757603447899,-480.0,0.00013955,2]
[384870255,1757603447908,-480.0,0.00013955,2]
[384870257,1757603447918,-480.0,0.00013955,2]
[384870259,1757603447927,-481.86596231,0.00013955,2]
[384870261,1757603447939,-480.0,0.00013955,2]
[384870263,1757603447950,-480.0,0.00013955,2]
[384870265,1757603447960,-480.0,0.00013955,2]
[384870268,1757603447969,-480.0,0.00013955,2]
[384870269,1757603447980,-480.0,0.00013955,2]
[384870272,1757603447989,-480.0,0.00013955,2]
[384870285,1757603448112,-480.0,0.00013955,2]
[384870287,1757603448122,-480.0,0.00013955,2]
[384870289,1757603448132,-465.81087191,0.00013955,2]
[384870291,1757603448142,-480.0,0.00013955,2]
[384870293,1757603448151,-508.74794958,0.00013955,2]
[384870295,1757603448161,-480.0,0.00013955,2]
[384870297,1757603448171,-480.0,0.00013955,2]
[384870299,1757603448182,-480.0,0.00013955,2]
[384870302,1757603448192,-480.0,0.00013955,2]
[384870304,1757603448201,-480.0,0.00013955,2]
[384870306,1757603448211,-480.0,0.00013955,2]
[384870308,1757603448221,-480.0,0.00013955,2]
[384870310,1757603448230,-490.1269132,0.00013955,2]
[384870312,1757603448240,-480.0,0.00013955,2]
[384870313,1757603448249,-480.0,0.00013955,2]
[384870316,1757603448259,-480.0,0.00013955,2]
[384870317,1757603448268,-480.0,0.00013955,2]
[384870319,1757603448279,-480.0,0.00013955,2]
[384870321,1757603448289,-504.54395965,0.00013955,2]
[384870324,1757603448299,-480.0,0.00013955,2]
[384870326,1757603448309,-480.0,0.00013955,2]
[384870327,1757603448319,-480.0,0.00013955,2]
[384870329,1757603448328,-273.14138374,0.00013955,2]
[384870331,1757603448338,-232.74332234,0.00013955,2]
[384870333,1757603448347,-187.29853758,0.00013955,2]
[384870335,1757603448356,-220.56109575,0.00013955,2]
[384870337,1757603448366,-485.94259476,0.00013955,2]
[384870339,1757603448376,-433.22443353,0.00013955,2]
[384870341,1757603448385,-480.0,0.00013955,2]
[384870343,1757603448394,-480.0,0.00013955,2]
[384870345,1757603448404,-480.0,0.00013955,2]
[384870347,1757603448413,-480.0,0.00013955,2]
[384870349,1757603448423,-480.0,0.00013955,2]
[384870352,1757603448438,-411.30529195,0.00013955,2]
[384870354,1757603448448,-480.0,0.00013955,2]
[384870356,1757603448457,-471.55663491,0.00013955,2]
[384870358,1757603448467,-354.3,0.00013955,2]
[384870360,1757603448476,-480.0,0.00013955,2]
[384870362,1757603448486,-480.0,0.00013955,2]
[384870364,1757603448495,-480.0,0.00013955,2]
[384870366,1757603448504,-480.0,0.00013955,2]
[384870368,1757603448514,-480.0,0.00013955,2]
[384870370,1757603448525,-480.0,0.00013955,2]
[384870372,1757603448534,-480.0,0.00013955,2]
[384870374,1757603448543,-500.0,0.00013961,2]
[384870376,1757603448553,-480.0,0.00013962,2]
[384870378,1757603448563,-480.96737224,0.00013962,2]
[384870380,1757603448574,-480.0,0.00013962,2]
[384870382,1757603448582,-480.0,0.00013962,2]
[384870384,1757603448592,-480.0,0.00013962,2]
[384870386,1757603448602,-480.0,0.00013962,2]
[384870388,1757603448611,-480.0,0.00013962,2]
[384870390,1757603448620,-480.0,0.00013962,2]
[384870392,1757603448630,-480.0,0.00013962,2]
[384870394,1757603448640,-480.0,0.00013962,2]
[384870396,1757603448649,-480.0,0.00013962,2]
[384870398,1757603448659,-480.0,0.00013962,2]
[384870400,1757603448669,-277.50656377,0.00013962,2]
[384870402,1757603448678,-480.0,0.00013962,2]
[384870404,1757603448687,-480.0,0.00013962,2]
[384870406,1757603448697,-480.0,0.00013962,2]
[384870408,1757603448707,-480.0,0.00013962,2]
[384870410,1757603448716,-480.0,0.00013964,2]
[384870412,1757603448725,-482.05577289,0.00013964,2]
[384870414,1757603448735,-480.0,0.00013964,2]
[384870416,1757603448744,-480.0,0.00013964,2]
[384870418,1757603448754,-314.55485015,0.00013964,2]
[384870420,1757603448764,-480.0,0.00013964,2]
[384870422,1757603448773,-480.0,0.00013964,2]
[384870424,1757603448782,-480.0,0.00013964,2]
[384870426,1757603448792,-480.0,0.00013964,2]
[384870428,1757603448801,-480.0,0.00013964,2]
[384870430,1757603448811,-480.0,0.00013964,2]
[384870432,1757603448820,-480.0,0.00013964,2]
[384870434,1757603448830,-480.0,0.00013964,2]
[384870436,1757603448840,-480.0,0.00013964,2]
[384870438,1757603448849,-480.0,0.00013964,2]
[384870440,1757603448858,-481.00229295,0.00013964,2]
[384870442,1757603448868,-491.66,0.00013964,2]
[384870444,1757603448878,-480.0,0.00013964,2]
[384870446,1757603448888,-500.0,0.00013999,2]
[384870448,1757603448898,-500.0,0.00013999,2]
[384870450,1757603448907,-32554.11166844,0.00014,2]
[384870452,1757603448917,-2255.82009287,0.00014122,2]
[384870454,1757603448926,-3436.39449104,0.00014126,2]
[384870456,1757603448935,-559.31,0.00014214,2]
[384870458,1757603448949,-845.61,0.00014214,2]
[384870460,1757603448958,-480.0,0.00014214,2]
[384870462,1757603448968,-480.0,0.00014214,2]
[384870464,1757603448978,-2015.58,0.00014214,2]
[384870466,1757603448989,-1503.76,0.00014216,2]
[384870468,1757603448998,-480.0,0.00014216,2]
[384870470,1757603449008,-480.0,0.00014216,2]
[384870472,1757603449017,-944.45,0.00014216,2]
[384870474,1757603449029,-1375.3,0.00014216,2]
[384870477,1757603449039,-480.0,0.00014216,2]
[384870478,1757603449048,-480.0,0.00014216,2]
[384870480,1757603449058,-480.0,0.00014216,2]
[384870482,1757603449068,-537.65,0.00014216,2]
[384870483,1757603449078,-252.02109809,0.00014222,2]
[384870484,1757603449088,-500.0,0.00014222,2]
[384870485,1757603449097,-500.0,0.00014222,2]
[384870486,1757603449107,-157.19242453,0.00014222,2]
[384870487,1757603449117,-255.15129915,0.00014222,2]
[384870488,1757603449127,-157.0,0.00014222,2]
[384870489,1757603449137,-157.0,0.00014222,2]
[384870490,1757603449146,-157.0,0.00014222,2]
[384870491,1757603449156,-157.0,0.00014222,2]
[384870492,1757603449166,-500.0,0.00014222,2]
[384870493,1757603449176,-157.0,0.00014222,2]
[384870494,1757603449186,-500.0,0.00014222,2]
[384870495,1757603449195,-157.4039483,0.00014222,2]
[384870496,1757603449205,-104.53228711,0.00014222,2]
[384871355,1757603652458,1199.99,0.00027,120]
[384871364,1757603820074,2000.0,0.0002739,120]
[384871365,1757603831559,2000.0,0.0002739,120]
[384871366,1757603842901,2000.0,0.0002739,120]
[384871367,1757603859702,2000.0,0.0002739,120]
[384871368,1757603860522,2000.0,0.0002739,120]
[384871369,1757603869404,2000.0,0.0002739,120]
[384871373,1757603878361,2000.0,0.0002739,120]
[384871374,1757603894778,624.996,0.0002739,120]
[384871382,1757604017319,10000.01,0.00013848,2]
[384871383,1757604017343,8603.8737,0.00013848,2]
[384871384,1757604017564,162.380719,0.00013848,2]
[384871389,1757604174594,530.130622,0.00013699,2]
[384871393,1757604231554,327.41660511,0.0001475,19]
[384871398,1757604391905,2629.18720861,0.0002739,120]
[384871495,1757604633168,-274.31180953,0.00013848,2]
[384871604,1757604638853,-724.88990049,0.00013848,2]
[384871606,1757604638866,-176.61206109,0.00013848,2]
[384871607,1757604638875,-300.0,0.00013936,2]
[384871608,1757604638885,-23.38793891,0.00013936,2]
[384871609,1757604638896,-276.61206109,0.00013936,2]
[384871610,1757604638905,-300.0,0.00013936,2]
[384871611,1757604638915,-1200.0,0.00013936,2]
[384871612,1757604638924,-223.38793891,0.00013937,2]
[384871613,1757604638936,-976.61206109,0.00013937,2]
[384871615,1757604638946,-164.58204116,0.00013938,2]
[384871617,1757604638955,-49.86589775,0.00013938,2]
[384871622,1757604639001,-450.13410225,0.00013938,2]
[384871624,1757604639010,-500.0,0.00013938,2]
[384871626,1757604639019,-500.0,0.00013938,2]
[384871628,1757604639028,-377.5,0.00013938,2]
[384871630,1757604639038,-500.0,0.00013938,2]
[384871632,1757604639047,-500.0,0.00013938,2]
[384871634,1757604639056,-500.0,0.00013938,2]
[384871636,1757604639065,-500.0,0.00013938,2]
[384871638,1757604639075,-500.0,0.00013938,2]
[384871640,1757604639084,-98.36308026,0.00013938,2]
[384871643,1757604639094,-401.63691974,0.00013938,2]
[384871645,1757604639103,-98.80115916,0.00013938,2]
[384872100,1757604643994,-276.32679621,0.00013938,2]
[384872101,1757604644006,-124.87204463,0.00013938,2]
[384872103,1757604644017,-557.7,0.00013938,2]
[384872105,1757604644032,-1847.61,0.00013938,2]
[384872106,1757604644042,-1378.45,0.00013938,2]
[384872108,1757604644051,-480.0,0.00013938,2]
[384872110,1757604644061,-480.0,0.00013938,2]
[384872111,1757604644070,-865.75,0.00013938,2]
[384872113,1757604644079,-1260.69,0.00013938,2]
[384872114,1757604644089,-1220.75,0.00013938,2]
[384872116,1757604644098,-480.0,0.00013938,2]
[384872118,1757604644108,-480.0,0.00013938,2]
[384872119,1757604644117,-480.0,0.00013938,2]
[384872121,1757604644126,-775.14,0.00013938,2]
[384872122,1757604644135,-480.0,0.00013938,2]
[384872124,1757604644144,-480.0,0.00013938,2]
[384872126,1757604644154,-746.98,0.00013938,2]
[384872127,1757604644163,-492.85,0.00013938,2]
[384872129,1757604644172,-362.01,0.00013939,2]
[384872130,1757604644181,-480.0,0.00013939,2]
[384872132,1757604644191,-628.3,0.00013939,2]
[384872134,1757604644200,-480.0,0.00013939,2]
[384872135,1757604644209,-480.0,0.00013939,2]
[384872137,1757604644218,-480.0,0.00013939,2]
[384872138,1757604644227,-480.0,0.00013939,2]
[384872140,1757604644237,-511.68,0.00013939,2]
[384872141,1757604644246,-488.91,0.00013939,2]
[384872143,1757604644255,-480.0,0.00013939,2]
[384872145,1757604644265,-480.0,0.00013939,2]
[384872146,1757604644274,-480.0,0.00013939,2]
[384872148,1757604644283,-480.0,0.00013939,2]
[384872150,1757604644293,-480.0,0.00013939,2]
[384872151,1757604644302,-662.21,0.00013939,2]
[384872153,1757604644312,-480.0,0.00013939,2]
[384872154,1757604644322,-480.0,0.00013939,2]
[384872156,1757604644331,-480.0,0.00013939,2]
[384872158,1757604644340,-480.0,0.00013939,2]
[384872159,1757604644349,-6925.97,0.00013939,2]
[384872161,1757604644358,-491.89,0.00013939,2]
[384872162,1757604644367,-480.0,0.00013939,2]
[384872164,1757604644376,-480.0,0.00013939,2]
[384872166,1757604644385,-500.0,0.00013939,2]
[384872167,1757604644394,-580.39,0.00013939,2]
[384872169,1757604644404,-480.0,0.00013939,2]
[384872170,1757604644416,-751.99,0.00013939,2]
[384872172,1757604644425,-953.47,0.00013939,2]
[384872174,1757604644435,-480.0,0.00013939,2]
[384872175,1757604644444,-480.0,0.00013939,2]
[384872177,1757604644453,-480.0,0.00013939,2]
[384872179,1757604644462,-480.0,0.00013939,2]
[384872180,1757604644471,-694.66,0.00013939,2]
[384872182,1757604644482,-560.01,0.00013939,2]
[384872183,1757604644491,-480.0,0.00013939,2]
[384872185,1757604644500,-480.0,0.00013939,2]
[384872187,1757604644509,-480.0,0.00013939,2]
[384872188,1757604644518,-480.0,0.00013939,2]
[384872190,1757604644528,-480.0,0.00013939,2]
[384872192,1757604644537,-480.0,0.00013939,2]
[384872194,1757604644547,-480.0,0.00013939,2]
[384872196,1757604644556,-480.0,0.00013939,2]
[384872198,1757604644565,-480.0,0.0001394,2]
[384872200,1757604644575,-480.0,0.0001394,2]
[384872202,1757604644584,-480.0,0.0001394,2]
[384872204,1757604644594,-500.0,0.00013946,2]
[384872206,1757604644604,-480.0,0.00013947,2]
[384872208,1757604644613,-480.0,0.00013947,2]
[384872210,1757604644622,-480.0,0.00013947,2]
[384872212,1757604644631,-1561.59,0.00013947,2]
[384872214,1757604644641,-833.11,0.00013947,2]
[384872216,1757604644650,-480.0,0.00013947,2]
[384872217,1757604644661,-500.0,0.00013947,2]
[384872219,1757604644670,-3337.0,0.00013947,2]
[384872221,1757604644679,-520.07,0.00013947,2]
[384872223,1757604644688,-802.71,0.00013947,2]
[384872225,1757604644697,-480.0,0.00013947,2]
[384872226,1757604644706,-1170.57,0.00013947,2]
[384872227,1757604644715,-1327.21,0.00013947,2]
[384872228,1757604644723,-480.0,0.00013948,2]
[384872229,1757604644732,-480.0,0.00013948,2]
[384872230,1757604644742,-480.0,0.00013948,2]
[384872231,1757604644751,-480.0,0.00013948,2]
[384872232,1757604644759,-480.0,0.00013948,2]
[384872233,1757604644768,-480.0,0.00013948,2]
[384872234,1757604644778,-480.0,0.00013948,2]
[384872235,1757604644787,-480.0,0.00013948,2]
[384872236,1757604644796,-480.0,0.00013948,2]
[384872237,1757604644805,-480.0,0.00013948,2]
[384872238,1757604644814,-480.0,0.00013948,2]
[384872239,1757604644823,-480.0,0.00013955,2]
[384872240,1757604644832,-480.0,0.00013955,2]
[384872241,1757604644841,-480.0,0.00013955,2]
[384872242,1757604644850,-260.24094954,0.0001405,2]
[384872243,1757604644859,-18603.8837,0.00014051,2]
[384872244,1757604644868,-162.380719,0.00014051,2]
[384872245,1757604644877,-46933.3192943,0.00014059,2]
[384872246,1757604644886,-3967.33810165,0.00014193,2]
[384872247,1757604644896,-1847.61,0.00014212,2]
[384872248,1757604644905,-1378.45,0.00014212,2]
[384872249,1757604644915,-480.0,0.00014212,2]
[384872250,1757604644924,-575.86,0.00014212,2]
[384872251,1757604644934,-500.0,0.00014212,2]
[384872252,1757604644943,-865.75,0.00014212,2]
[384872253,1757604644952,-1260.69,0.00014212,2]
[384872254,1757604644961,-1220.75,0.00014212,2]
[384872255,1757604644970,-480.0,0.00014212,2]
[384872256,1757604644979,-480.0,0.00014212,2]
[384872257,1757604644988,-480.0,0.00014212,2]
[384872258,1757604644997,-775.14,0.00014212,2]
[384872259,1757604645006,-480.0,0.00014212,2]
[384872260,1757604645015,-480.0,0.00014212,2]
[384872261,1757604645025,-746.98,0.00014212,2]
[384872262,1757604645034,-492.85,0.00014212,2]
[384872263,1757604645043,-628.3,0.00014213,2]
[384872264,1757604645053,-480.0,0.00014213,2]
[384872265,1757604645062,-492.78,0.00014213,2]
[384872266,1757604645072,-480.0,0.00014213,2]
[384872267,1757604645081,-480.0,0.00014213,2]
[384872268,1757604645090,-488.91,0.00014213,2]
[384872269,1757604645099,-480.0,0.00014213,2]
[384872270,1757604645109,-480.0,0.00014213,2]
[384872271,1757604645118,-480.0,0.00014213,2]
[384872272,1757604645127,-480.0,0.00014213,2]
[384872273,1757604645136,-662.21,0.00014213,2]
[384872275,1757604645145,-480.0,0.00014213,2]
[384872276,1757604645154,-480.49610537,0.00014213,2]
[384872277,1757604645163,-480.0,0.00014213,2]
[384872278,1757604645172,-6925.97,0.00014213,2]
[384872280,1757604645182,-491.89,0.00014213,2]
[384872282,1757604645191,-480.0,0.00014213,2]
[384872284,1757604645201,-480.0,0.00014213,2]
[384872286,1757604645210,-580.39,0.00014213,2]
[384872288,1757604645220,-480.0,0.00014213,2]
[384872290,1757604645229,-751.99,0.00014213,2]
[384872292,1757604645239,-953.47,0.00014213,2]
[384872294,1757604645248,-480.0,0.00014213,2]
[384872296,1757604645258,-480.0,0.00014213,2]
[384872298,1757604645269,-480.0,0.00014213,2]
[384872300,1757604645279,-366.37456292,0.00014213,2]
[384872302,1757604645288,-694.66,0.00014213,2]
[384872304,1757604645298,-480.0,0.00014213,2]
[384872306,1757604645307,-480.0,0.00014213,2]
[384872308,1757604645317,-480.0,0.00014213,2]
[384872310,1757604645326,-547.7863424,0.00014213,2]
[384872312,1757604645335,-480.0,0.00014213,2]
[384872314,1757604645345,-480.0,0.00014213,2]
[384872316,1757604645354,-480.0,0.00014213,2]
[384872318,1757604645364,-480.0,0.00014213,2]
[384872319,1757604645373,-480.0,0.00014214,2]
[384872321,1757604645382,-480.0,0.00014214,2]
[384872323,1757604645391,-480.0,0.00014221,2]
[384872325,1757604645401,-151.0,0.00014221,2]
[384872327,1757604645411,-151.0,0.00014221,2]
[384872330,1757604645422,-151.0,0.00014221,2]
[384872332,1757604645431,-151.0,0.00014221,2]
[384872334,1757604645440,-151.0,0.00014221,2]
[384872336,1757604645451,-151.0,0.00014221,2]
[384872337,1757604645459,-151.0,0.00014221,2]
[384872340,1757604645471,-480.0,0.00014221,2]
[384872341,1757604645480,-151.0,0.00014221,2]
[384872344,1757604645490,-480.0,0.00014221,2]
[384872346,1757604645501,-151.0,0.00014221,2]
[384872347,1757604645513,-151.0,0.00014221,2]
[384872350,1757604645523,-151.0,0.00014221,2]
[384872352,1757604645532,-151.0,0.00014221,2]
[384872354,1757604645542,-1561.59,0.00014221,2]
[384872355,1757604645552,-151.0,0.00014221,2]
[384872358,1757604645562,-151.0,0.00014221,2]
[384872360,1757604645572,-151.0,0.00014221,2]
[384872362,1757604645581,-151.0,0.00014221,2]
[384872363,1757604645591,-833.11,0.00014221,2]
[384872366,1757604645600,-151.0,0.00014221,2]
[384872367,1757604645610,-480.0,0.00014221,2]
[384872369,1757604645619,-151.0,0.00014221,2]
[384872371,1757604645629,-500.0,0.00014221,2]
[384872374,1757604645640,-151.0,0.00014221,2]
[384872375,1757604645649,-3337.0,0.00014221,2]
[384872377,1757604645658,-151.0,0.00014221,2]
[384872379,1757604645667,-151.954609,0.00014221,2]
[384872382,1757604645677,-151.0,0.00014221,2]
[384872383,1757604645686,-151.0,0.00014221,2]
[384872385,1757604645695,-151.0,0.00014221,2]
[384872387,1757604645706,-151.0,0.00014221,2]
[384872389,1757604645716,-151.0,0.00014221,2]
[384872391,1757604645726,-151.0,0.00014221,2]
[384872393,1757604645736,-520.07,0.00014221,2]
[384872395,1757604645745,-802.71,0.00014221,2]
[384872397,1757604645755,-151.0,0.00014221,2]
[384872399,1757604645764,-151.0,0.00014221,2]
[384872401,1757604645773,-151.753326,0.00014221,2]
[384872403,1757604645783,-151.0,0.00014221,2]
[384872405,1757604645792,-151.0,0.00014221,2]
[384872407,1757604645803,-151.0,0.00014221,2]
[384872409,1757604645812,-151.0,0.00014221,2]
[384872411,1757604645821,-480.0,0.00014221,2]
[384872413,1757604645831,-151.0,0.00014221,2]
[384872415,1757604645840,-151.318523,0.00014221,2]
[384872417,1757604645850,-1170.57,0.00014221,2]
[384872419,1757604645859,-1327.21,0.00014221,2]
[384872421,1757604645869,-151.0,0.00014221,2]
[384872423,1757604645878,-151.0,0.00014221,2]
[384872425,1757604645888,-151.0,0.00014221,2]
[384872427,1757604645897,-154.088002,0.00014221,2]
[384872429,1757604645907,-151.0,0.00014221,2]
[384872431,1757604645916,-480.0,0.00014222,2]
[384872433,1757604645927,-151.0,0.00014222,2]
[384872435,1757604645936,-480.0,0.00014222,2]
[384872437,1757604645945,-151.0,0.00014222,2]
[384872439,1757604645955,-151.0,0.00014222,2]
[384872441,1757604645964,-500.0,0.00014222,2]
[384872443,1757604645974,-302.27211697,0.00014222,2]
[384872445,1757604645983,-164.24058408,0.00014222,2]
[384872447,1757604645993,-480.0,0.00014222,2]
[384872449,1757604646003,-151.0,0.00014222,2]
[384872451,1757604646013,-151.957432,0.00014222,2]
[384872453,1757604646025,-151.0,0.00014222,2]
[384872455,1757604646036,-157.0,0.00014222,2]
[384872458,1757604646047,-541.46750393,0.00014222,2]
[384872459,1757604646059,-500.0,0.00014222,2]
[384872461,1757604646068,-480.0,0.00014222,2]
[384872463,1757604646078,-500.0,0.00014222,2]
[384872465,1757604646087,-157.0,0.00014222,2]
[384872467,1757604646097,-153.271923,0.00014224,2]
[384872469,1757604646107,-311.59118173,0.00014224,2]
[384872472,1757604646117,-480.0,0.00014229,2]
[384872474,1757604646127,-160.0,0.00014355,2]
[384872476,1757604646137,-217.69300629,0.00014356,2]
[384872478,1757604646146,-160.0,0.00014356,2]
[384872480,1757604646156,-233.10680167,0.00014356,2]
[384872482,1757604646166,-846.96613202,0.00014356,2]
[384872484,1757604646175,-417.15472785,0.00014356,2]
[384872486,1757604646185,-530.95967032,0.00014356,2]
[384872488,1757604646194,-160.0,0.00014356,2]
[384872490,1757604646204,-160.0,0.00014356,2]
[384872493,1757604646213,-1000.0,0.00014383,2]
[384872496,1757604646223,-1000.0,0.00014383,2]
[384872498,1757604646232,-1000.0,0.00014383,2]
[384872500,1757604646242,-1000.0,0.00014383,2]
[384872502,1757604646252,-1000.0,0.00014383,2]
[384872504,1757604646262,-1000.0,0.00014383,2]
[384872507,1757604646271,-1000.0,0.00014383,2]
[384872510,1757604646280,-1000.0,0.00014383,2]
[384872512,1757604646289,-176.40775488,0.00014383,2]
[384872514,1757604646299,-1847.79293545,0.00014395,2]
[384872516,1757604646309,-151.0,0.00014396,2]
[384872518,1757604646318,-151.0,0.00014396,2]
[384872521,1757604646327,-151.709117,0.00014396,2]
[384872524,1757604646336,-227.240536,0.000144,2]
[384872527,1757604646345,-151.0,0.000144,2]
[384872530,1757604646356,-1847.61,0.00014486,2]
[384872533,1757604646365,-1378.45,0.00014486,2]
[384872536,1757604646375,-480.0,0.00014486,2]
[384872539,1757604646384,-865.75,0.00014486,2]
[384872551,1757604646492,-1260.69,0.00014486,2]
[384872553,1757604646501,-1220.75,0.00014486,2]
[384872555,1757604646511,-480.0,0.00014486,2]